lending/lending_fUSD_20250121
["ID","MTS","AMOUNT","RATE_DAILY","PERIOD"]
[349779147,1737423040721,-500.0,0.00020313,2]
[349779148,1737423040730,-500.0,0.00020313,2]
[349779149,1737423040739,-233.39260162,0.00020376,2]
[349779150,1737423040749,-500.0,0.00020445,2]
[349779151,1737423040758,-500.0,0.00020445,2]
[349779152,1737423040767,-520.02,0.00020445,2]
[349779153,1737423040777,-388.61714253,0.00020445,2]
[349779154,1737423040786,-500.0,0.00020445,2]
[349779155,1737423040795,-500.0,0.00020445,2]
[349779156,1737423040804,-500.0,0.00020445,2]
[349779157,1737423040814,-500.0,0.00020445,2]
[349779158,1737423040823,-500.0,0.00020445,2]
[349779159,1737423040833,-500.0,0.00020445,2]
[349779160,1737423040842,-500.0,0.00020445,2]
[349779161,1737423040852,-500.0,0.00020445,2]
[349779162,1737423040862,-500.0,0.00020445,2]
[349779163,1737423040871,-500.0,0.00020445,2]
[349779164,1737423040880,-500.0,0.00020445,2]
[349779165,1737423040891,-500.0,0.00020445,2]
[349779166,1737423040902,-500.0,0.00020445,2]
[349779167,1737423040911,-500.0,0.00020445,2]
[349779168,1737423040921,-500.0,0.00020445,2]
[349779169,1737423040931,-500.0,0.00020445,2]
[349779170,1737423040944,-500.0,0.00020445,2]
[349779171,1737423040954,-543.31,0.00020445,2]
[349779172,1737423040964,-500.0,0.00020445,2]
[349779173,1737423040973,-1140.62,0.00020445,2]
[349779174,1737423040983,-500.0,0.00020445,2]
[349779175,1737423040992,-702.2,0.00020445,2]
[349779176,1737423041002,-500.0,0.00020445,2]
[349779177,1737423041011,-732.0,0.00020445,2]
[349779178,1737423041020,-500.0,0.00020445,2]
[349779179,1737423041029,-500.0,0.00020445,2]
[349779180,1737423041038,-500.0,0.00020445,2]
[349779181,1737423041047,-500.0,0.00020445,2]
[349779182,1737423041057,-1372.06,0.00020445,2]
[349779183,1737423041066,-586.1,0.00020445,2]
[349779184,1737423041075,-1413.04,0.00020445,2]
[349779185,1737423041084,-787.56,0.00020445,2]
[349779186,1737423041094,-599.28,0.00020445,2]
[349779187,1737423041104,-500.0,0.00020445,2]
[349779188,1737423041114,-500.0,0.00020445,2]
[349779189,1737423041123,-669.5,0.00020445,2]
[349779190,1737423041132,-1739.87,0.00020445,2]
[349779191,1737423041141,-500.0,0.00020445,2]
[349779192,1737423041150,-500.0,0.00020445,2]
[349779193,1737423041160,-500.0,0.00020445,2]
[349779194,1737423041169,-500.0,0.00020445,2]
[349779195,1737423041179,-334.83943535,0.00020445,2]
[349779196,1737423041191,-941.7,0.00020445,2]
[349779197,1737423041200,-500.0,0.00020445,2]
[349779198,1737423041210,-500.0,0.00020445,2]
[349779199,1737423041219,-161.07197527,0.00020445,2]
[349779200,1737423041228,-500.0,0.00020445,2]
[349779201,1737423041238,-500.0,0.00020445,2]
[349779202,1737423041247,-348.83207896,0.00020445,2]
[349779203,1737423041256,-190.7548069,0.00020498,2]
[349779204,1737423041265,-309.0948305,0.000205,2]
[349779205,1737423041274,-4962.52344908,0.00020524,2]
[349779206,1737423041283,-500.0,0.00020544,2]
[349779207,1737423041292,-500.0,0.00020544,2]
[349779208,1737423041302,-937.28,0.00020544,2]
[349779209,1737423041311,-500.0,0.00020544,2]
[349779210,1737423041320,-500.0,0.00020544,2]
[349779211,1737423041329,-994.79,0.00020544,2]
[349779212,1737423041338,-500.0,0.00020544,2]
[349779213,1737423041347,-572.42,0.00020544,2]
[349779214,1737423041356,-500.0,0.00020544,2]
[349779215,1737423041365,-593.95,0.00020544,2]
[349779216,1737423041374,-500.0,0.00020544,2]
[349779217,1737423041383,-500.0,0.00020544,2]
[349779218,1737423041392,-951.48,0.00020544,2]
[349779219,1737423041401,-500.0,0.00020544,2]
[349779220,1737423041410,-950.11,0.00020544,2]
[349779221,1737423041420,-500.0,0.00020544,2]
[349779222,1737423041429,-500.0,0.00020544,2]
[349779223,1737423041438,-500.0,0.00020544,2]
[349779224,1737423041450,-500.982833,0.00020544,2]
[349779225,1737423041459,-500.0,0.00020544,2]
[349779226,1737423041468,-500.0,0.00020544,2]
[349779227,1737423041477,-500.0,0.00020544,2]
[349779228,1737423041487,-592.38143286,0.00020544,2]
[349779229,1737423041496,-1185.86,0.00020544,2]
[349779230,1737423041505,-613.73,0.00020545,2]
[349779231,1737423041514,-354.129524,0.00020545,2]
[349779232,1737423041523,-1377.51,0.00020545,2]
[349779233,1737423041532,-500.0,0.00020545,2]
[349779234,1737423041541,-500.0,0.00020545,2]
[349779235,1737423041550,-500.0,0.00020545,2]
[349779236,1737423041559,-500.0,0.00020545,2]
[349779237,1737423041568,-925.63,0.00020545,2]
[349779238,1737423041577,-500.0,0.00020545,2]
[349779239,1737423041586,-708.37,0.00020545,2]
[349779240,1737423041595,-507.5,0.00020545,2]
[349779241,1737423041604,-1413.1,0.00020545,2]
[349779242,1737423041613,-742.13,0.00020545,2]
[349779243,1737423041622,-500.0,0.00020545,2]
[349779244,1737423041631,-1436.66,0.00020545,2]
[349779245,1737423041640,-500.0,0.00020545,2]
[349779246,1737423041650,-500.0,0.00020545,2]
[349779247,1737423041659,-607.09,0.00020545,2]
[349779248,1737423041668,-906.34,0.00020545,2]
[349779249,1737423041677,-500.0,0.00020545,2]
[349779250,1737423041686,-500.0,0.00020545,2]
[349779251,1737423041699,-1075.53,0.00020545,2]
[349779252,1737423041708,-1055.83,0.00020545,2]
[349779253,1737423041718,-500.0,0.00020545,2]
[349779254,1737423041726,-500.0,0.00020545,2]
[349779255,1737423041735,-556.9,0.00020545,2]
[349779256,1737423041745,-677.89,0.00020545,2]
[349779257,1737423041753,-1109.12,0.00020545,2]
[349779258,1737423041762,-675.24,0.00020545,2]
[349779259,1737423041771,-475.15853425,0.00020545,2]
[349779260,1737423041780,-635.64,0.00020545,2]
[349779261,1737423041789,-500.0,0.00020545,2]
[349779262,1737423041798,-500.0,0.00020545,2]
[349779263,1737423041807,-952.66,0.00020545,2]
[349779264,1737423041816,-500.0,0.00020545,2]
[349779265,1737423041824,-500.0,0.00020545,2]
[349779266,1737423041833,-762.46,0.00020545,2]
[349779267,1737423041842,-500.0,0.00020546,2]
[349779268,1737423041851,-500.0,0.00020546,2]
[349779269,1737423041860,-500.0,0.00020546,2]
[349779270,1737423041869,-500.0,0.00020546,2]
[349779271,1737423041878,-429.81695615,0.00020546,2]
[349779272,1737423041887,-500.0,0.00020546,2]
[349779273,1737423041896,-604.43192156,0.00020546,2]
[349779274,1737423041906,-500.0,0.00020546,2]
[349779275,1737423041916,-500.0,0.00020546,2]
[349779276,1737423041925,-500.0,0.00020546,2]
[349779277,1737423041935,-500.0,0.00020546,2]
[349779278,1737423041948,-500.0,0.00020546,2]
[349779279,1737423041957,-500.0,0.00020546,2]
[349779280,1737423041966,-274.17,0.00020546,2]
[349779281,1737423041976,-500.0,0.00020546,2]
[349779282,1737423041988,-500.0,0.00020546,2]
[349779283,1737423041999,-184.55,0.00020587,2]
[349779284,1737423042008,-500.0,0.00020587,2]
[349779285,1737423042018,-500.0,0.00020587,2]
[349779286,1737423042026,-500.0,0.00020587,2]
[349779287,1737423042035,-500.0,0.00020587,2]
[349779288,1737423042044,-68992.3472,0.00020587,2]
[349779289,1737423042052,-233.39260162,0.00020681,2]
[349779290,1737423042061,-1000.0,0.00020693,2]
[349779291,1737423042070,-309.0948305,0.000207,2]
[349779292,1737423042078,-500.0,0.00020719,2]
[349779293,1737423042088,-500.0,0.00020719,2]
[349779294,1737423042097,-520.02,0.00020719,2]
[349779295,1737423042106,-500.0,0.00020719,2]
[349779296,1737423042115,-500.0,0.00020719,2]
[349779297,1737423042124,-493.00739953,0.00020719,2]
[349779298,1737423042134,-500.0,0.00020719,2]
[349779299,1737423042143,-500.0,0.00020719,2]
[349779300,1737423042152,-500.0,0.00020719,2]
[349779301,1737423042160,-500.0,0.00020719,2]
[349779302,1737423042169,-500.0,0.00020719,2]
[349779303,1737423042178,-500.0,0.00020719,2]
[349779304,1737423042187,-500.0,0.00020719,2]
[349779305,1737423042199,-500.0,0.00020719,2]
[349779306,1737423042208,-500.0,0.00020719,2]
[349779307,1737423042217,-500.0,0.00020719,2]
[349779308,1737423042225,-500.0,0.00020719,2]
[349779309,1737423042234,-500.0,0.00020719,2]
[349779310,1737423042243,-500.0,0.00020719,2]
[349779311,1737423042252,-500.0,0.00020719,2]
[349779312,1737423042261,-543.31,0.00020719,2]
[349779313,1737423042270,-500.0,0.00020719,2]
[349779314,1737423042280,-1140.62,0.00020719,2]
[349779315,1737423042289,-500.0,0.00020719,2]
[349779316,1737423042299,-702.2,0.00020719,2]
[349779317,1737423042308,-500.0,0.00020719,2]
[349779318,1737423042318,-732.0,0.00020719,2]
[349779319,1737423042326,-500.0,0.00020719,2]
[349779320,1737423042335,-500.0,0.00020719,2]
[349779321,1737423042344,-500.0,0.00020719,2]
[349779322,1737423042354,-500.0,0.00020719,2]
[349779323,1737423042363,-1372.06,0.00020719,2]
[349779324,1737423042372,-586.1,0.00020719,2]
[349779325,1737423042381,-1413.04,0.00020719,2]
[349779326,1737423042390,-787.56,0.00020719,2]
[349779327,1737423042400,-599.28,0.00020719,2]
[349779328,1737423042409,-500.0,0.00020719,2]
[349779329,1737423042418,-491.41081765,0.00020719,2]
[349779330,1737423042427,-669.5,0.00020719,2]
[349779331,1737423042436,-1739.87,0.00020719,2]
[349779332,1737423042449,-500.0,0.00020719,2]
[349779333,1737423042459,-500.0,0.00020719,2]
[349779334,1737423042467,-500.0,0.00020719,2]
[349779335,1737423042477,-500.0,0.00020719,2]
[349779336,1737423042486,-941.7,0.00020719,2]
[349779337,1737423042495,-500.0,0.00020719,2]
[349779338,1737423042505,-500.0,0.00020719,2]
[349779339,1737423042515,-500.0,0.00020719,2]
[349779340,1737423042524,-414.82658673,0.00020719,2]
[349779341,1737423042533,-190.7548069,0.00020732,2]
[349779342,1737423042542,-4962.52344908,0.000208,2]
[349779343,1737423042551,-500.0,0.00020818,2]
[349779344,1737423042560,-500.0,0.00020818,2]
[349779345,1737423042570,-937.28,0.00020818,2]
[349779346,1737423042579,-500.0,0.00020818,2]
[349779347,1737423042588,-500.0,0.00020818,2]
[349779349,1737423042598,-994.79,0.00020818,2]
[349779350,1737423042608,-500.0,0.00020818,2]
[349779351,1737423042617,-572.42,0.00020818,2]
[349779352,1737423042626,-500.0,0.00020818,2]
[349779353,1737423042635,-593.95,0.00020818,2]
[349779354,1737423042645,-500.0,0.00020818,2]
[349779355,1737423042654,-500.0,0.00020818,2]
[349779356,1737423042662,-951.48,0.00020818,2]
[349779357,1737423042671,-500.0,0.00020818,2]
[349779358,1737423042682,-950.11,0.00020818,2]
[349779359,1737423042690,-500.0,0.00020818,2]
[349779360,1737423042704,-500.0,0.00020818,2]
[349779361,1737423042713,-500.0,0.00020818,2]
[349779362,1737423042722,-500.982833,0.00020818,2]
[349779363,1737423042731,-500.0,0.00020818,2]
[349779364,1737423042740,-500.0,0.00020818,2]
[349779365,1737423042749,-500.0,0.00020818,2]
[349779366,1737423042758,-1185.86,0.00020818,2]
[349779367,1737423042767,-613.73,0.00020819,2]
[349779368,1737423042777,-354.129524,0.00020819,2]
[349779369,1737423042786,-1377.51,0.00020819,2]
[349779370,1737423042796,-500.0,0.00020819,2]
[349779371,1737423042806,-500.0,0.00020819,2]
[349779372,1737423042816,-500.0,0.00020819,2]
[349779373,1737423042825,-500.0,0.00020819,2]
[349779374,1737423042835,-925.63,0.00020819,2]
[349779375,1737423042844,-500.0,0.00020819,2]
[349779376,1737423042853,-708.37,0.00020819,2]
[349779377,1737423042862,-507.5,0.00020819,2]
[349779378,1737423042871,-1413.1,0.00020819,2]
[349779379,1737423042880,-742.13,0.00020819,2]
[349779380,1737423042892,-500.0,0.00020819,2]
[349779381,1737423042904,-1436.66,0.00020819,2]
[349779382,1737423042913,-500.0,0.00020819,2]
[349779383,1737423042922,-500.0,0.00020819,2]
[349779384,1737423042932,-607.09,0.00020819,2]
[349779386,1737423042943,-906.34,0.00020819,2]
[349779388,1737423042952,-500.0,0.00020819,2]
[349779390,1737423042961,-500.0,0.00020819,2]
[349779391,1737423042971,-1075.53,0.00020819,2]
[349779392,1737423042980,-1055.83,0.00020819,2]
[349779393,1737423042989,-500.0,0.00020819,2]
[349779394,1737423042999,-500.0,0.00020819,2]
[349779395,1737423043008,-556.9,0.00020819,2]
[349779396,1737423043017,-677.89,0.00020819,2]
[349779397,1737423043026,-1109.12,0.00020819,2]
[349779398,1737423043035,-675.24,0.00020819,2]
[349779399,1737423043044,-635.64,0.00020819,2]
[349779400,1737423043053,-500.0,0.00020819,2]
[349779401,1737423043063,-500.0,0.00020819,2]
[349779402,1737423043072,-952.66,0.00020819,2]
[349779403,1737423043081,-500.0,0.00020819,2]
[349779404,1737423043090,-500.0,0.00020819,2]
[349779405,1737423043099,-762.46,0.00020819,2]
[349779406,1737423043108,-500.0,0.0002082,2]
[349779407,1737423043119,-500.0,0.0002082,2]
[349779408,1737423043129,-500.0,0.0002082,2]
[349779409,1737423043139,-500.0,0.0002082,2]
[349779410,1737423043148,-500.0,0.0002082,2]
[349779411,1737423043158,-500.0,0.0002082,2]
[349779412,1737423043167,-284.87582312,0.0002082,2]
[349779413,1737423043177,-500.0,0.0002082,2]
[349779414,1737423043187,-500.0,0.0002082,2]
[349779415,1737423043200,-500.0,0.0002082,2]
[349779416,1737423043210,-500.0,0.0002082,2]
[349779417,1737423043220,-500.0,0.0002082,2]
[349779418,1737423043230,-500.0,0.0002082,2]
[349779419,1737423043239,-500.0,0.00020861,2]
[349779420,1737423043249,-500.0,0.00020861,2]
[349779421,1737423043260,-500.0,0.00020861,2]
[349779422,1737423043270,-229.86957286,0.00020861,2]
[349779423,1737423043280,-161.066,0.000209,2]
[349779424,1737423043289,-309.0948305,0.000209,2]
[349779425,1737423043299,-150.0,0.0002091,2]
[349779426,1737423043310,-190.7548069,0.00020965,2]
[349779427,1737423043320,-233.39260162,0.00020986,2]
[349779428,1737423043467,-579.65,0.00020993,2]
[349779429,1737423043476,-500.0,0.00020993,2]
[349779430,1737423043486,-520.02,0.00020993,2]
[349779431,1737423043495,-500.0,0.00020993,2]
[349779432,1737423043505,-500.0,0.00020993,2]
[349779433,1737423043515,-500.0,0.00020993,2]
[349779434,1737423043524,-500.0,0.00020993,2]
[349779435,1737423043533,-500.0,0.00020993,2]
[349779436,1737423043543,-500.0,0.00020993,2]
[349779437,1737423043552,-500.0,0.00020993,2]
[349779438,1737423043562,-500.0,0.00020993,2]
[349779439,1737423043571,-500.0,0.00020993,2]
[349779440,1737423043580,-500.0,0.00020993,2]
[349779441,1737423043590,-500.0,0.00020993,2]
[349779442,1737423043599,-500.0,0.00020993,2]
[349779443,1737423043609,-500.0,0.00020993,2]
[349779444,1737423043619,-500.0,0.00020993,2]
[349779445,1737423043628,-500.0,0.00020993,2]
[349779446,1737423043638,-500.0,0.00020993,2]
[349779447,1737423043647,-543.31,0.00020993,2]
[349779448,1737423043655,-500.0,0.00020993,2]
[349779449,1737423043665,-1140.62,0.00020993,2]
[349779450,1737423043674,-500.0,0.00020993,2]
[349779451,1737423043683,-702.2,0.00020993,2]
[349779452,1737423043695,-500.0,0.00020993,2]
[349779453,1737423043705,-732.0,0.00020993,2]
[349779454,1737423043714,-500.0,0.00020993,2]
[349779455,1737423043724,-500.0,0.00020993,2]
[349779456,1737423043733,-500.0,0.00020993,2]
[349779457,1737423043743,-500.0,0.00020993,2]
[349779458,1737423043753,-1372.06,0.00020993,2]
[349779459,1737423043763,-586.1,0.00020993,2]
[349779461,1737423043772,-1413.04,0.00020993,2]
[349779463,1737423043782,-787.56,0.00020993,2]
[349779464,1737423043791,-599.28,0.00020993,2]
[349779466,1737423043800,-500.0,0.00020993,2]
[349779468,1737423043809,-669.5,0.00020993,2]
[349779470,1737423043818,-1739.87,0.00020993,2]
[349779472,1737423043827,-500.0,0.00020993,2]
[349779473,1737423043837,-500.0,0.00020993,2]
[349779474,1737423043846,-500.0,0.00020993,2]
[349779475,1737423043855,-500.0,0.00020993,2]
[349779476,1737423043864,-941.7,0.00020993,2]
[349779477,1737423043873,-500.0,0.00020993,2]
[349779478,1737423043882,-500.0,0.00020993,2]
[349779479,1737423043893,-500.0,0.00020993,2]
[349779480,1737423043905,-322052.61682946,0.00021,2]
[349779481,1737423043914,-13033.57796318,0.00021,2]
[349779482,1737423043924,-362.94287197,0.00021,2]
[349779483,1737423043934,-20393.43280063,0.00021,3]
[349779484,1737423043947,-2880.05055062,0.00021,3]
[349779485,1737423043957,-27175.03348529,0.00021,2]
[349779486,1737423043966,-150.0,0.00021053,2]
[349779487,1737423043978,-4962.52344908,0.00021075,2]
[349779488,1737423043988,-500.0,0.00021092,2]
[349779489,1737423043997,-500.0,0.00021092,2]
[349779490,1737423044007,-937.28,0.00021092,2]
[349779491,1737423044016,-500.0,0.00021092,2]
[349779492,1737423044025,-500.0,0.00021092,2]
[349779493,1737423044034,-994.79,0.00021092,2]
[349779494,1737423044043,-500.0,0.00021092,2]
[349779495,1737423044052,-572.42,0.00021092,2]
[349779496,1737423044061,-500.0,0.00021092,2]
[349779497,1737423044070,-593.95,0.00021092,2]
[349779498,1737423044080,-500.0,0.00021092,2]
[349779499,1737423044090,-500.0,0.00021092,2]
[349779500,1737423044099,-951.48,0.00021092,2]
[349779501,1737423044109,-500.0,0.00021092,2]
[349779502,1737423044122,-950.11,0.00021092,2]
[349779503,1737423044132,-500.0,0.00021092,2]
[349779504,1737423044142,-500.0,0.00021092,2]
[349779505,1737423044152,-500.0,0.00021092,2]
[349779506,1737423044162,-500.982833,0.00021092,2]
[349779507,1737423044172,-500.0,0.00021092,2]
[349779508,1737423044181,-160.689841,0.00021092,2]
[349779509,1737423044192,-199.26642318,0.00021092,2]
[349779510,1737423044204,-500.0,0.00021092,2]
[349779511,1737423044215,-1185.86,0.00021092,2]
[349779512,1737423044224,-613.73,0.00021093,2]
[349779513,1737423044234,-354.129524,0.00021093,2]
[349779514,1737423044243,-1377.51,0.00021093,2]
[349779515,1737423044252,-166.60041839,0.00021093,2]
[349779516,1737423044262,-500.0,0.00021093,2]
[349779517,1737423044272,-500.0,0.00021093,2]
[349779518,1737423044281,-500.0,0.00021093,2]
[349779519,1737423044291,-925.63,0.00021093,2]
[349779520,1737423044301,-500.0,0.00021093,2]
[349779521,1737423044311,-708.37,0.00021093,2]
[349779522,1737423044321,-507.5,0.00021093,2]
[349779523,1737423044330,-1413.1,0.00021093,2]
[349779524,1737423044339,-742.13,0.00021093,2]
[349779525,1737423044349,-500.0,0.00021093,2]
[349779526,1737423044359,-1436.66,0.00021093,2]
[349779527,1737423044368,-500.0,0.00021093,2]
[349779528,1737423044378,-500.0,0.00021093,2]
[349779529,1737423044387,-607.09,0.00021093,2]
[349779530,1737423044398,-906.34,0.00021093,2]
[349779531,1737423044408,-500.0,0.00021093,2]
[349779532,1737423044418,-500.0,0.00021093,2]
[349779533,1737423044428,-1075.53,0.00021093,2]
[349779534,1737423044437,-1055.83,0.00021093,2]
[349779535,1737423044450,-500.0,0.00021093,2]
[349779536,1737423044459,-500.0,0.00021093,2]
[349779537,1737423044468,-556.9,0.00021093,2]
[349779538,1737423044478,-677.89,0.00021093,2]
[349779539,1737423044487,-1109.12,0.00021093,2]
[349779540,1737423044497,-675.24,0.00021093,2]
[349779541,1737423044506,-635.64,0.00021093,2]
[349779542,1737423044516,-500.0,0.00021093,2]
[349779543,1737423044526,-500.0,0.00021093,2]
[349779544,1737423044535,-952.66,0.00021093,2]
[349779545,1737423044544,-214.8631332,0.00021093,2]
[349779546,1737423044554,-500.0,0.00021093,2]
[349779547,1737423044563,-762.46,0.00021093,2]
[349779548,1737423044572,-166.7,0.00021094,2]
[349779549,1737423044582,-458.4,0.00021094,2]
[349779550,1737423044591,-500.0,0.00021094,2]
[349779551,1737423044601,-500.0,0.00021094,2]
[349779552,1737423044610,-242.03,0.00021094,2]
[349779553,1737423044620,-432.41407066,0.00021094,2]
[349779554,1737423044629,-500.0,0.00021094,2]
[349779555,1737423044639,-500.0,0.00021094,2]
[349779556,1737423044648,-500.0,0.00021094,2]
[349779557,1737423044658,-500.0,0.00021094,2]
[349779558,1737423044668,-500.0,0.00021094,2]
[349779559,1737423044677,-500.0,0.00021094,2]
[349779560,1737423044686,-309.0948305,0.000211,2]
[349779561,1737423044698,-83811.15108323,0.00021129,2]
[349779562,1737423044707,-500.0,0.00021135,2]
[349779563,1737423044716,-378.66510316,0.00021135,2]
[349779564,1737423044726,-500.0,0.00021135,2]
[349779565,1737423044735,-13086.499,0.00021168,2]
[349779566,1737423044745,-22783.2277,0.00021168,2]
[349779567,1737423044754,-1000.0,0.00021171,2]
[349779568,1737423044763,-190.7548069,0.00021199,2]
[349779569,1737423044773,-184.51179674,0.00021245,2]
[349779570,1737423044782,-500.0,0.00021267,2]
[349779571,1737423044791,-520.02,0.00021267,2]
[349779572,1737423044800,-518.08473971,0.00021267,2]
[349779573,1737423044810,-316.3,0.00021267,2]
[349779574,1737423044819,-500.0,0.00021267,2]
[349779575,1737423044828,-500.0,0.00021267,2]
[349779576,1737423044837,-500.0,0.00021267,2]
[349779577,1737423044846,-500.0,0.00021267,2]
[349779578,1737423044855,-500.0,0.00021267,2]
[349779579,1737423044863,-500.0,0.00021267,2]
[349779580,1737423044873,-500.0,0.00021267,2]
[349779581,1737423044882,-500.0,0.00021267,2]
[349779582,1737423044895,-500.0,0.00021267,2]
[349779583,1737423044904,-500.0,0.00021267,2]
[349779584,1737423044913,-500.0,0.00021267,2]
[349779585,1737423044922,-500.0,0.00021267,2]
[349779586,1737423044931,-500.0,0.00021267,2]
[349779587,1737423044941,-500.0,0.00021267,2]
[349779588,1737423044952,-543.31,0.00021267,2]
[349779589,1737423044960,-500.0,0.00021267,2]
[349779590,1737423044970,-1140.62,0.00021267,2]
[349779591,1737423044980,-500.0,0.00021267,2]
[349779592,1737423044989,-702.2,0.00021267,2]
[349779593,1737423044998,-500.0,0.00021267,2]
[349779594,1737423045008,-732.0,0.00021267,2]
[349779595,1737423045017,-500.0,0.00021267,2]
[349779596,1737423045026,-500.0,0.00021267,2]
[349779597,1737423045035,-520.89,0.00021267,2]
[349779598,1737423045044,-500.0,0.00021267,2]
[349779599,1737423045053,-1372.06,0.00021267,2]
[349779600,1737423045062,-586.1,0.00021267,2]
[349779601,1737423045072,-1413.04,0.00021267,2]
[349779602,1737423045081,-787.56,0.00021267,2]
[349779603,1737423045090,-599.28,0.00021267,2]
[349779604,1737423045099,-500.0,0.00021267,2]
[349779605,1737423045108,-669.5,0.00021267,2]
[349779606,1737423045117,-1739.87,0.00021267,2]
[349779607,1737423045127,-529.96935048,0.00021267,2]
[349779608,1737423045137,-500.0,0.00021267,2]
[349779609,1737423045146,-437.98,0.00021267,2]
[349779610,1737423045155,-500.0,0.00021267,2]
[349779611,1737423045165,-941.7,0.00021267,2]
[349779612,1737423045174,-500.0,0.00021267,2]
[349779613,1737423045183,-500.0,0.00021267,2]
[349779614,1737423045195,-500.0,0.00021267,2]
[349779615,1737423045204,-233.39260162,0.0002129,2]
[349779616,1737423045213,-32305.52755111,0.000213,2]
[349779617,1737423045223,-309.0948305,0.000213,2]
[349779618,1737423045232,-1000.0,0.00021338,2]
[349779619,1737423045241,-4962.52344908,0.0002135,2]
[349779620,1737423045251,-500.0,0.00021366,2]
[349779621,1737423045260,-500.0,0.00021366,2]
[349779622,1737423045269,-937.28,0.00021366,2]
[349779623,1737423045279,-500.0,0.00021366,2]
[349779624,1737423045288,-500.0,0.00021366,2]
[349779625,1737423045297,-994.79,0.00021366,2]
[349779626,1737423045307,-572.42,0.00021366,2]
[349779627,1737423045316,-500.0,0.00021366,2]
[349779628,1737423045326,-593.95,0.00021366,2]
[349779629,1737423045335,-500.0,0.00021366,2]
[349779630,1737423045344,-500.0,0.00021366,2]
[349779631,1737423045353,-951.48,0.00021366,2]
[349779632,1737423045363,-500.0,0.00021366,2]
[349779633,1737423045372,-950.11,0.00021366,2]
[349779634,1737423045381,-500.0,0.00021366,2]
[349779635,1737423045391,-500.0,0.00021366,2]
[349779636,1737423045400,-500.0,0.00021366,2]
[349779637,1737423045409,-500.982833,0.00021366,2]
[349779638,1737423045419,-500.0,0.00021366,2]
[349779639,1737423045429,-500.0,0.00021366,2]
[349779640,1737423045438,-1185.86,0.00021366,2]
[349779641,1737423045448,-613.73,0.00021367,2]
[349779642,1737423045457,-354.129524,0.00021367,2]
[349779643,1737423045466,-1377.51,0.00021367,2]
[349779644,1737423045475,-500.0,0.00021367,2]
[349779645,1737423045485,-500.0,0.00021367,2]
[349779646,1737423045494,-500.0,0.00021367,2]
[349779647,1737423045503,-925.63,0.00021367,2]
[349779648,1737423045513,-500.0,0.00021367,2]
[349779649,1737423045522,-708.37,0.00021367,2]
[349779650,1737423045531,-507.5,0.00021367,2]
[349779651,1737423045540,-1413.1,0.00021367,2]
[349779652,1737423045551,-742.13,0.00021367,2]
[349779653,1737423045560,-500.0,0.00021367,2]
[349779654,1737423045569,-1436.66,0.00021367,2]
[349779655,1737423045578,-500.0,0.00021367,2]
[349779656,1737423045588,-500.0,0.00021367,2]